fUST/lending_fUST_20250501
["ID","MTS","AMOUNT","RATE_DAILY","PERIOD"]
[359471160,1746045060123,-151.0,0.00040285,14]
[359471161,1746045060135,-151.0,0.00040285,14]
[359471162,1746045060145,-509.05,0.00040285,12]
[359471163,1746045060155,-509.05,0.00040285,12]
[359471164,1746045060164,-509.05,0.00040285,12]
[359471165,1746045060175,-509.05,0.00040285,12]
[359471166,1746045060185,-509.16,0.00040285,12]
[359471167,1746045060195,-400.0,0.00040285,12]
[359471168,1746045060206,-400.0,0.00040285,12]
[359471169,1746045060218,-436.59,0.00040285,12]
[359471170,1746045060228,-935.89,0.00040285,12]
[359471171,1746045060238,-935.89,0.00040285,12]
[359471172,1746045060248,-935.89,0.00040285,12]
[359471173,1746045060258,-935.89,0.00040285,12]
[359471174,1746045060268,-935.98,0.00040285,12]
[359471175,1746045060278,-151.0,0.00040288,14]
[359471176,1746045060288,-151.0,0.00040288,14]
[359471177,1746045060298,-151.0,0.00040288,14]
[359471178,1746045060308,-151.0,0.00040288,14]
[359471179,1746045060317,-151.0,0.00040288,14]
[359471180,1746045060327,-151.0,0.00040288,14]
[359471181,1746045060336,-151.0,0.00040288,14]
[359471182,1746045060346,-151.0,0.00040288,14]
[359471183,1746045060356,-151.0,0.00040288,14]
[359471184,1746045060365,-151.0,0.00040288,14]
[359471185,1746045060375,-151.0,0.00040288,14]
[359471186,1746045060385,-151.0,0.00040288,14]
[359471187,1746045060394,-151.0,0.00040288,14]
[359471188,1746045060404,-198.363091,0.00040288,14]
[359471189,1746045060413,-151.0,0.00040288,14]
[359471190,1746045060423,-153.7173,0.00040288,14]
[359471191,1746045060433,-151.0,0.00040288,14]
[359471192,1746045060443,-151.0,0.00040288,14]
[359471193,1746045060453,-272.42549,0.00040288,14]
[359471194,1746045060463,-151.0,0.00040288,14]
[359471195,1746045060473,-173.398846,0.00040288,14]
[359471196,1746045060483,-151.0,0.00040288,14]
[359471197,1746045060494,-151.0,0.00040288,14]
[359471198,1746045060504,-151.0,0.00040288,14]
[359471199,1746045060514,-151.0,0.00040288,14]
[359471200,1746045060524,-151.0,0.00040288,14]
[359471201,1746045060533,-151.0,0.00040288,14]
[359471202,1746045060543,-151.0,0.00040288,14]
[359471203,1746045060553,-151.0,0.00040288,14]
[359471204,1746045060562,-151.0,0.00040288,14]
[359471205,1746045060572,-151.0,0.00040288,14]
[359471206,1746045060582,-151.0,0.00040288,14]
[359471207,1746045060591,-187.611872,0.00040288,14]
[359471208,1746045060662,-152.439723,0.00040288,14]
[359471209,1746045060672,-151.144259,0.00040288,14]
[359471210,1746045060682,-690.458916,0.00040288,14]
[359471211,1746045060691,-690.458916,0.00040288,14]
[359471212,1746045060701,-690.458916,0.00040288,14]
[359471213,1746045060711,-690.458916,0.00040288,14]
[359471214,1746045060721,-690.458916,0.00040288,14]
[359471215,1746045060731,-690.458916,0.00040288,14]
[359471216,1746045060742,-690.458916,0.00040288,14]
[359471217,1746045060753,-690.458916,0.00040288,14]
[359471218,1746045060763,-690.458916,0.00040288,14]
[359471219,1746045060773,-690.458916,0.00040288,14]
[359471220,1746045060783,-690.458916,0.00040288,14]
[359471221,1746045060793,-690.458916,0.00040288,14]
[359471222,1746045060802,-151.0,0.00040288,14]
[359471223,1746045060812,-151.0,0.00040288,14]
[359471224,1746045060821,-151.0,0.00040288,14]
[359471225,1746045060831,-151.0,0.00040288,14]
[359471226,1746045060840,-151.0,0.00040288,14]
[359471227,1746045060850,-151.0,0.00040288,14]
[359471228,1746045060860,-151.0,0.00040288,14]
[359471229,1746045060873,-151.0,0.00040288,14]
[359471230,1746045060883,-151.0,0.00040288,14]
[359471231,1746045060892,-191.25831,0.00040288,14]
[359471232,1746045060902,-151.0,0.00040288,14]
[359471233,1746045060913,-151.0,0.00040288,14]
[359471234,1746045060923,-151.0,0.00040288,14]
[359471235,1746045060933,-151.0,0.00040288,14]
[359471236,1746045060944,-151.0,0.00040288,14]
[359471237,1746045060954,-151.0,0.00040288,14]
[359471238,1746045060965,-151.0,0.00040288,14]
[359471239,1746045060976,-1542.465392,0.00040288,14]
[359471240,1746045060986,-1542.465392,0.00040288,14]
[359471241,1746045060995,-1542.465392,0.00040288,14]
[359471242,1746045061007,-1542.465392,0.00040288,14]
[359471243,1746045061017,-1542.465392,0.00040288,14]
[359471244,1746045061026,-1542.465392,0.00040288,14]
[359471245,1746045061036,-1542.465392,0.00040288,14]
[359471246,1746045061046,-1542.465392,0.00040288,14]
[359471247,1746045061056,-1542.465392,0.00040288,14]
[359471248,1746045061066,-1542.465392,0.00040288,14]
[359471249,1746045061075,-1542.465392,0.00040288,14]
[359471250,1746045061094,-1542.465392,0.00040288,14]
[359471251,1746045061106,-1542.465392,0.00040288,14]
[359471252,1746045061116,-1542.465392,0.00040288,14]
[359471253,1746045061126,-831.869266,0.00040288,14]
[359471254,1746045061136,-831.869266,0.00040288,14]
[359471255,1746045061146,-831.869266,0.00040288,14]
[359471256,1746045061157,-831.869266,0.00040288,14]
[359471257,1746045061167,-831.869266,0.00040288,14]
[359471258,1746045061177,-831.869266,0.00040288,14]
[359471259,1746045061208,-831.869266,0.00040288,14]
[359471260,1746045061227,-831.869266,0.00040288,14]
[359471261,1746045061250,-831.869266,0.00040288,14]
[359471262,1746045061272,-831.869266,0.00040288,14]
[359471263,1746045061295,-831.869266,0.00040288,14]
[359471264,1746045061317,-831.869266,0.00040288,14]
[359471265,1746045061339,-831.869266,0.00040288,14]
[359471266,1746045061355,-831.869266,0.00040288,14]
[359471267,1746045061372,-151.0,0.00040288,14]
[359471268,1746045061391,-151.0,0.00040288,14]
[359471269,1746045061413,-151.0,0.00040288,14]
[359471270,1746045061430,-151.0,0.00040288,14]
[359471271,1746045061444,-151.0,0.00040288,14]
[359471272,1746045061462,-151.0,0.00040288,14]
[359471273,1746045061476,-151.0,0.00040288,14]
[359471274,1746045061493,-151.0,0.00040288,14]
[359471275,1746045061509,-244.588864,0.00040288,14]
[359471276,1746045061524,-151.0,0.000403,16]
[359471277,1746045061541,-151.0,0.000403,12]
[359471278,1746045061557,-151.0,0.000403,15]
[359471279,1746045061573,-2000.0,0.000403,26]
[359471280,1746045061588,-5539.23,0.000403,30]
[359471281,1746045061605,-1670.22,0.000403,30]
[359471282,1746045061619,-840.90604152,0.000403,30]
[359471283,1746045061635,-150.0,0.000403,26]
[359471284,1746045061650,-206.0,0.0004031,30]
[359471285,1746045061671,-500.9635813,0.00040317,15]
[359471286,1746045061689,-500.0,0.00040318,15]
[359471287,1746045061705,-151.0,0.00040321,14]
[359471288,1746045061721,-151.0,0.00040321,14]
[359471289,1746045061736,-151.0,0.00040321,14]
[359471290,1746045061751,-151.0,0.00040321,14]
[359471291,1746045061766,-258.73386,0.00040321,14]
[359471292,1746045061781,-154.062408,0.00040321,14]
[359471293,1746045061796,-151.0,0.00040321,14]
[359471294,1746045061810,-151.0,0.00040321,14]
[359471295,1746045061824,-151.0,0.00040321,14]
[359471296,1746045061838,-163.345629,0.00040321,14]
[359471297,1746045061852,-151.0,0.00040321,14]
[359471298,1746045061866,-151.0,0.00040321,14]
[359471299,1746045061883,-151.0,0.00040321,14]
[359471300,1746045061898,-151.0,0.00040321,14]
[359471301,1746045061912,-151.0,0.00040321,14]
[359471302,1746045061927,-151.0,0.00040321,14]
[359471303,1746045061940,-151.0,0.00040321,14]
[359471304,1746045061955,-151.0,0.00040321,14]
[359471305,1746045061970,-157.059143,0.00040321,14]
[359471306,1746045061985,-151.0,0.00040321,14]
[359471307,1746045062001,-151.0,0.00040321,14]
[359471308,1746045062012,-151.0,0.00040321,14]
[359471309,1746045062022,-151.0,0.00040321,14]
[359471310,1746045062139,-151.0,0.00040321,14]
[359471311,1746045062154,-151.0,0.00040321,14]
[359471312,1746045062164,-151.0,0.00040321,14]
[359471313,1746045062174,-151.0,0.00040321,14]
[359471314,1746045062184,-151.0,0.00040321,14]
[359471315,1746045062194,-151.0,0.00040321,14]
[359471316,1746045062203,-151.0,0.00040321,14]
[359471317,1746045062214,-332.893638,0.00040321,14]
[359471318,1746045062224,-332.893638,0.00040321,14]
[359471319,1746045062234,-332.893638,0.00040321,14]
[359471320,1746045062245,-332.893638,0.00040321,14]
[359471321,1746045062256,-332.893638,0.00040321,14]
[359471322,1746045062267,-332.893638,0.00040321,14]
[359471323,1746045062277,-332.893638,0.00040321,14]
[359471324,1746045062287,-332.893638,0.00040321,14]
[359471325,1746045062297,-332.893638,0.00040321,14]
[359471326,1746045062306,-332.893638,0.00040321,14]
[359471327,1746045062316,-332.893638,0.00040321,14]
[359471328,1746045062325,-332.893638,0.00040321,14]
[359471329,1746045062335,-332.893638,0.00040321,14]
[359471330,1746045062344,-332.893638,0.00040321,14]
[359471331,1746045062354,-151.0,0.00040321,14]
[359471332,1746045062364,-151.0,0.00040321,14]
[359471333,1746045062373,-164.009768,0.00040321,14]
[359471334,1746045062382,-151.0,0.00040321,14]
[359471335,1746045062393,-151.0,0.00040321,14]
[359471336,1746045062402,-151.0,0.00040321,14]
[359471337,1746045062411,-151.0,0.00040321,14]
[359471338,1746045062421,-151.0,0.00040321,14]
[359471339,1746045062431,-151.0,0.00040321,14]
[359471340,1746045062440,-151.0,0.00040321,14]
[359471341,1746045062449,-778.513903,0.00040321,2]
[359471342,1746045062459,-778.513903,0.00040321,2]
[359471343,1746045062468,-778.513903,0.00040321,2]
[359471344,1746045062478,-778.513903,0.00040321,2]
[359471345,1746045062487,-778.513903,0.00040321,2]
[359471346,1746045062497,-778.513903,0.00040321,2]
[359471347,1746045062508,-778.513903,0.00040321,2]
[359471348,1746045062517,-778.513903,0.00040321,2]
[359471349,1746045062527,-778.513903,0.00040321,2]
[359471350,1746045062536,-778.513903,0.00040321,2]
[359471351,1746045062546,-778.513903,0.00040321,2]
[359471352,1746045062555,-151.0,0.00040321,14]
[359471353,1746045062565,-778.513903,0.00040321,2]
[359471354,1746045062575,-151.0,0.00040321,14]
[359471355,1746045062584,-778.513903,0.00040321,2]
[359471356,1746045062593,-778.513903,0.00040321,2]
[359471357,1746045062604,-151.0,0.00040321,14]
[359471358,1746045062614,-151.0,0.00040321,14]
[359471359,1746045062623,-151.0,0.00040321,14]
[359471360,1746045062632,-406576.1995585,0.00040321,2]
[359471361,1746045062642,-30032.85532497,0.00040321,3]
[359471362,1746045063351,-4907.44664022,0.00040321,3]
[359471363,1746045063401,-400.0,0.00038356,12]
[359471364,1746045063411,-400.0,0.00038356,12]
[359471365,1746045063421,-400.0,0.00038356,12]
[359471366,1746045063431,-400.0,0.00038356,12]
[359471367,1746045063441,-400.0,0.00038356,12]
[359471368,1746045063451,-1153.38152411,0.00040321,3]
[359471369,1746045063568,-18.17492649,0.00040321,3]
[359471370,1746045063599,-1558.23805295,0.00038256,2]
[359471371,1746045063609,-5042.38577706,0.00040321,3]
[359471372,1746045063619,-14111.89033862,0.00040321,20]
[359471373,1746045063632,-1649.36721682,0.00040321,20]
[359471374,1746045063644,-2712.5024788,0.00040321,20]
[359471375,1746045063656,-2343.9534402,0.00040321,20]
[359471376,1746045063704,-1058.42344795,0.00040321,20]
[359471377,1746045063715,-9852.27703743,0.00040321,20]
[359471407,1746046026135,-355.93632656,0.00027373,2]
[359471409,1746046027084,-389.78851336,0.00027373,2]
[359471411,1746046035070,-854.94853585,0.00027373,2]
[359471412,1746046035092,-78.14536628,0.00027397,2]
[359471413,1746046036118,-187.94820119,0.00027397,2]
[359471415,1746046045117,-296.24650053,0.00027397,2]
[359471416,1746046045139,-177.0,0.00027397,3]
[359471417,1746046045162,-160.0,0.00029999,2]
[359471418,1746046045184,-3682.137104,0.00030558,2]
[359471419,1746046045210,-400.0,0.00033072,2]
[359471420,1746046045236,-24900.0,0.00033073,2]
[359471421,1746046045256,-562.340068,0.00033165,2]
[359471422,1746046045276,-153.74559292,0.0003438,2]
[359471423,1746046045297,-234.1345378,0.0003443,2]
[359471424,1746046045317,-185.531321,0.0003443,2]
[359471425,1746046045337,-200.705442,0.0003443,2]
[359471426,1746046045358,-542.20136053,0.00034479,7]
[359471427,1746046045378,-14225.5732795,0.0003448,2]
[359471428,1746046045398,-421.37435881,0.00035176,2]
[359471429,1746046045419,-153.7455929,0.00035215,2]
[359471430,1746046045440,-560.0,0.00035531,2]
[359471431,1746046045460,-155.0,0.00035616,2]
[359471432,1746046045480,-153.7455929,0.0003605,2]
[359471433,1746046045501,-651.96125436,0.00036585,2]
[359471440,1746046160079,-189.0,0.00027397,3]
[359471441,1746046160102,-66.12605501,0.00034084,2]
[359471442,1746046166091,-184.98762551,0.00034084,2]
[359471456,1746046236909,-500.0,0.00036552,7]
[359471457,1746046236919,-182.04053198,0.00036597,2]
[359471458,1746046236931,-840.5,0.00036613,30]
[359471459,1746046236942,-500.0,0.00036969,7]
[359471460,1746046236953,-500.0,0.00037029,7]
[359471462,1746046236964,-500.0,0.00037155,7]
[359471464,1746046236974,-400.0,0.00037564,2]
[359471466,1746046236985,-4516.18850903,0.00037565,5]
[359471469,1746046236999,-7983.81149097,0.00037565,5]
[359471471,1746046237009,-185.531321,0.00037854,2]
[359471473,1746046237020,-2357.24257866,0.00038221,2]
[359471475,1746046237030,-4496.46893756,0.00038346,3]
[359471478,1746046237045,-179.98,0.00038346,3]
[359471480,1746046237058,-539.94,0.00038346,3]
[359471482,1746046237069,-500.0,0.00038355,15]
[359471484,1746046237080,-330.61183417,0.00038355,7]
[359471485,1746046237092,-567.89894406,0.00038355,15]
[359471486,1746046237103,-400.0,0.00038356,12]
[359471487,1746046237115,-400.0,0.00038356,12]
[359471488,1746046237296,-400.0,0.00038356,12]
[359471489,1746046237307,-400.0,0.00038356,12]
[359471490,1746046237317,-400.0,0.00038356,12]
[359471491,1746046237328,-400.0,0.00038356,12]
[359471492,1746046237338,-400.0,0.00038356,12]
[359471493,1746046237348,-400.0,0.00038356,12]
[359471494,1746046237357,-422.31,0.00038356,12]
[359471495,1746046237367,-400.0,0.00038356,12]
[359471496,1746046237377,-400.0,0.00038356,12]
[359471497,1746046237387,-400.0,0.00038356,12]
[359471498,1746046237397,-400.0,0.00038356,12]
[359471499,1746046237406,-400.0,0.00038356,12]
[359471500,1746046237415,-400.0,0.00038356,12]
[359471501,1746046237426,-400.0,0.00038356,12]
[359471502,1746046237437,-163.31926674,0.00038356,12]
[359471503,1746046237448,-400.0,0.00038356,12]
[359471504,1746046237458,-400.0,0.00038356,12]
[359471505,1746046237468,-400.0,0.00038356,12]
[359471506,1746046237478,-400.0,0.00038356,12]
[359471507,1746046237488,-400.0,0.00038356,12]
[359471508,1746046237498,-400.0,0.00038356,12]
[359471509,1746046237508,-460.58345037,0.00038356,12]
[359471510,1746046237518,-400.0,0.00038356,12]
[359471511,1746046237529,-400.0,0.00038356,12]
[359471512,1746046237539,-400.0,0.00038356,12]
[359471513,1746046237549,-400.0,0.00038356,12]
[359471514,1746046237558,-400.0,0.00038356,12]
[359471515,1746046237568,-400.0,0.00038356,12]
[359471516,1746046237579,-400.0,0.00038356,12]
[359471517,1746046237589,-400.0,0.00038356,12]
[359471518,1746046237600,-400.0,0.00038356,12]
[359471519,1746046237611,-501.3272988,0.00038356,12]
[359471520,1746046237621,-400.0,0.00038356,12]
[359471521,1746046237631,-400.0,0.00038356,12]
[359471522,1746046237642,-401.28326586,0.00038356,12]
[359471523,1746046237651,-400.0,0.00038356,12]
[359471524,1746046237661,-469.88461556,0.00038356,12]
[359471525,1746046237671,-400.0,0.00038356,12]
[359471526,1746046237681,-400.0,0.00038356,12]
[359471527,1746046237690,-403.54540228,0.00038356,12]
[359471528,1746046237701,-400.0,0.00038356,12]
[359471529,1746046237711,-400.0,0.00038356,12]
[359471530,1746046237720,-400.0,0.00038356,12]
[359471531,1746046237730,-441.58597465,0.00038356,5]
[359471532,1746046237740,-400.0,0.00038356,12]
[359471533,1746046237749,-400.0,0.00038356,12]
[359471534,1746046237759,-400.0,0.00038356,12]
[359471535,1746046237771,-400.0,0.00038356,12]
[359471536,1746046237780,-300.0,0.00038356,12]
[359471537,1746046237791,-154.42325445,0.00038356,12]
[359471538,1746046237806,-245.57674555,0.00038356,12]
[359471539,1746046237815,-400.0,0.00038356,12]
[359471540,1746046237825,-41.94473836,0.00038356,12]
[359471541,1746046237838,-358.05526164,0.00038356,12]
[359471542,1746046237850,-49.91114854,0.00038356,12]
[359471543,1746046237863,-456.1759043,0.00038356,12]
[359471544,1746046237873,-400.0,0.00038356,12]
[359471545,1746046237882,-206.1393732,0.00038356,12]
[359471546,1746046237894,-193.8606268,0.00038356,12]
[359471547,1746046237903,-400.0,0.00038356,12]
[359471548,1746046237913,-383.3300607,0.00038356,12]
[359471561,1746046238616,-316.0,0.00037565,2]
[359471562,1746046238626,-16.6699393,0.00038356,12]
[359471563,1746046238635,-400.0,0.00038356,12]
[359471564,1746046238645,-400.0,0.00038356,12]
[359471565,1746046238654,-400.5023986,0.00038356,12]
[359471566,1746046238664,-400.0,0.00038356,12]
[359471567,1746046238674,-400.0,0.00038356,12]
[359471568,1746046238683,-400.0,0.00038356,12]
[359471569,1746046238692,-400.0,0.00038356,12]
[359471570,1746046238702,-400.0,0.00038356,12]
[359471571,1746046238711,-400.0,0.00038356,12]
[359471572,1746046238721,-400.0,0.00038356,12]
[359471573,1746046238730,-400.0,0.00038356,12]
[359471574,1746046238739,-400.0,0.00038356,12]
[359471575,1746046238748,-179.65455157,0.00038356,12]
[359471576,1746046238760,-220.34544843,0.00038356,12]
[359471577,1746046238769,-400.0,0.00038356,12]
[359471578,1746046238779,-400.0,0.00038356,12]
[359471579,1746046238788,-297.35,0.00038356,12]
[359471580,1746046238797,-400.0,0.00038356,12]
[359471581,1746046238806,-400.0,0.00038356,12]
[359471582,1746046238816,-400.0,0.00038356,12]
[359471583,1746046238825,-400.0,0.00038356,12]
[359471584,1746046238834,-400.0,0.00038356,12]
[359471585,1746046238844,-445.33988166,0.00038356,12]
[359471586,1746046238863,-168.92199174,0.00038356,12]
[359471587,1746046238873,-400.0,0.00038356,12]
[359471588,1746046238883,-400.0,0.00038356,12]
[359471589,1746046238894,-400.0,0.00038356,12]
[359471590,1746046238904,-400.0,0.00038356,12]
[359471591,1746046238915,-400.0,0.00038356,12]
[359471592,1746046238925,-303.56021186,0.00038356,12]
[359471593,1746046238936,-400.0,0.00038356,12]
[359471594,1746046238947,-400.0,0.00038356,12]
[359471595,1746046238958,-400.0,0.00038356,12]
[359471596,1746046238968,-400.0,0.00038356,12]
[359471597,1746046238979,-400.0,0.00038356,12]
[359471598,1746046238989,-400.0,0.00038356,12]
[359471599,1746046238999,-400.0,0.00038356,12]
[359471600,1746046239009,-400.0,0.00038356,12]
[359471601,1746046239020,-400.0,0.00038356,12]
[359471602,1746046239030,-400.0,0.00038356,12]
[359471603,1746046239041,-400.0,0.00038356,12]
[359471604,1746046239052,-368.31288645,0.00038356,12]
[359471605,1746046239063,-400.0,0.00038356,12]
[359471606,1746046239073,-457.02,0.00038356,12]
[359471607,1746046239083,-400.0,0.00038356,12]
[359471608,1746046239094,-400.0,0.00038356,12]
[359471609,1746046239104,-400.0,0.00038356,12]
[359471610,1746046239113,-400.0,0.00038356,12]
[359471611,1746046239123,-400.0,0.00038356,12]
[359471612,1746046239133,-400.0,0.00038356,12]
[359471613,1746046239143,-400.0,0.00038356,12]
[359471614,1746046239152,-400.0,0.00038356,12]
[359471615,1746046239162,-400.0,0.00038356,12]
[359471616,1746046239172,-400.0,0.00038356,12]
[359471617,1746046239182,-400.0,0.00038356,12]
[359471618,1746046239191,-400.0,0.00038356,12]
[359471619,1746046239201,-439.63,0.00038356,12]
[359471620,1746046239211,-400.0,0.00038356,12]
[359471621,1746046239221,-400.0,0.00038356,12]
[359471622,1746046239230,-400.0,0.00038356,12]
[359471623,1746046239240,-522.14,0.00038356,12]
[359471624,1746046239253,-400.0,0.00038356,12]
[359471625,1746046239263,-400.0,0.00038356,12]
[359471626,1746046239273,-431.49470418,0.00038356,12]
[359471627,1746046239282,-400.0,0.00038356,12]
[359471628,1746046239293,-400.0,0.00038356,12]
[359471629,1746046239303,-400.0,0.00038356,12]
[359471630,1746046239313,-400.0,0.00038356,12]
[359471631,1746046239324,-400.0,0.00038356,12]
[359471632,1746046239333,-400.0,0.00038356,12]
[359471633,1746046239343,-153.94,0.00038356,12]
[359471634,1746046239353,-500.0,0.00038356,12]
[359471635,1746046239363,-400.0,0.00038356,12]
[359471636,1746046239373,-400.0,0.00038356,12]
[359471637,1746046239382,-420.03,0.00038356,12]
[359471638,1746046239393,-400.0,0.00038356,7]
[359471639,1746046239403,-400.0,0.00038356,12]
[359471640,1746046239414,-400.0,0.00038356,12]
[359471641,1746046239423,-400.0,0.00038356,12]
[359471642,1746046239433,-400.0,0.00038356,12]
[359471643,1746046239443,-400.0,0.00038356,12]
[359471644,1746046239453,-380.97,0.00038356,12]
[359471645,1746046239467,-400.0,0.00038356,12]
[359471646,1746046239478,-400.0,0.00038356,12]
[359471647,1746046239489,-400.0,0.00038356,12]
[359471648,1746046239499,-154.49,0.00038356,12]
[359471649,1746046239509,-400.0,0.00038356,12]
[359471650,1746046239519,-400.0,0.00038356,12]
[359471651,1746046239529,-405.32,0.00038356,12]
[359471652,1746046239539,-400.0,0.00038356,12]
[359471653,1746046239549,-400.0,0.00038356,12]
[359471654,1746046239559,-207.7512332,0.00038356,12]
[359471655,1746046239568,-297.83404959,0.00038356,12]
[359471656,1746046239578,-400.0,0.00038356,12]
[359471657,1746046239588,-400.0,0.00038356,12]
[359471658,1746046239598,-400.0,0.00038356,12]
[359471659,1746046239608,-400.0,0.00038356,12]
[359471660,1746046239617,-400.0,0.00038356,12]
[359471661,1746046239628,-500.0,0.00038356,12]
[359471662,1746046239637,-222.17,0.00038356,12]
[359471663,1746046239647,-400.0,0.00038356,12]
[359471664,1746046239657,-457.35616245,0.00038356,12]
[359471665,1746046239667,-420.93,0.00038356,12]
[359471666,1746046239676,-400.0,0.00038356,12]
[359471667,1746046239686,-198.59109285,0.00038356,12]
[359471668,1746046239695,-400.0,0.00038356,12]
[359471669,1746046239705,-456.89,0.00038356,12]
[359471670,1746046239715,-513.28022643,0.00038356,12]
[359471671,1746046239724,-400.0,0.00038356,12]
[359471672,1746046239734,-400.0,0.00038356,12]
[359471673,1746046239743,-400.0,0.00038356,12]
[359471674,1746046239753,-400.0,0.00038356,12]
[359471675,1746046239763,-192.98,0.00038356,12]
[359471676,1746046239772,-400.0,0.00038356,12]
[359471677,1746046239782,-543.68880615,0.00038356,12]
[359471678,1746046239792,-363.66705151,0.00038356,12]
[359471679,1746046239802,-512.64824748,0.00038356,12]
[359471680,1746046239814,-400.0,0.00038356,12]
[359471681,1746046239824,-400.0,0.00038356,12]
[359471682,1746046239834,-400.0,0.00038356,12]
[359471683,1746046239844,-400.0,0.00038356,12]
[359471684,1746046239854,-400.0,0.00038356,12]
[359471685,1746046239864,-400.0,0.00038356,12]
[359471686,1746046239874,-500.0,0.00038356,12]
[359471687,1746046239884,-400.0,0.00038356,12]
[359471688,1746046239893,-400.0,0.00038356,12]
[359471689,1746046239904,-400.0,0.00038356,12]
[359471690,1746046239914,-399.74846244,0.00038356,12]
[359471691,1746046239928,-400.0,0.00038356,12]
[359471692,1746046239939,-400.0,0.00038356,12]
[359471693,1746046239949,-400.0,0.00038356,12]
[359471694,1746046239963,-400.0,0.00038356,12]
[359471695,1746046239974,-531.34,0.00038356,12]
[359471696,1746046239985,-400.0,0.00038356,12]
[359471697,1746046239995,-400.0,0.00038356,12]
[359471698,1746046240005,-400.0,0.00038356,2]
[359471699,1746046240015,-400.0,0.00038356,2]
[359471700,1746046240026,-400.0,0.00038356,2]
[359471701,1746046240036,-400.0,0.00038356,2]
[359471702,1746046240048,-400.0,0.00038356,2]
[359471703,1746046240060,-328.05,0.00038356,2]
[359471704,1746046240070,-400.0,0.00038356,12]
[359471705,1746046240082,-328.52,0.00038356,12]
[359471706,1746046240091,-453.6,0.00038356,12]
[359471707,1746046240101,-400.0,0.00038356,12]
[359471708,1746046240111,-400.0,0.00038356,12]
[359471709,1746046240122,-400.0,0.00038356,12]
[359471710,1746046240132,-270.63,0.00038356,12]
[359471711,1746046240142,-400.0,0.00038356,12]
[359471712,1746046240154,-400.0,0.00038356,12]
[359471713,1746046240164,-400.0,0.00038356,12]
[359471715,1746046240175,-400.0,0.00038356,12]
[359471717,1746046240185,-318.28248934,0.00038356,12]
[359471718,1746046240194,-400.0,0.00038356,12]
[359471719,1746046240204,-400.0,0.00038356,12]
[359471720,1746046240213,-400.0,0.00038356,12]
[359471721,1746046240224,-429.07,0.00038356,12]
[359471722,1746046240233,-400.0,0.00038356,12]
[359471723,1746046240244,-400.0,0.00038356,12]
[359471724,1746046240258,-400.0,0.00038356,12]
[359471725,1746046240269,-400.0,0.00038356,12]
[359471726,1746046240280,-400.0,0.00038356,12]
[359471727,1746046240291,-400.0,0.00038356,12]
[359471728,1746046240300,-400.0,0.00038356,12]
[359471729,1746046240310,-348.7,0.00038356,12]
[359471730,1746046240320,-400.0,0.00038356,12]
[359471731,1746046240331,-420.79,0.00038356,12]
[359471732,1746046240342,-400.0,0.00038356,12]
[359471733,1746046240352,-400.0,0.00038356,12]
[359471734,1746046240362,-400.0,0.00038356,12]
[359471735,1746046240371,-502.97291629,0.00038356,12]
[359471736,1746046240381,-509.29243448,0.00038356,12]
[359471737,1746046240391,-400.9112927,0.00038356,12]